[Event "January 2 Late 2024"]
[Site "https://www.chess.com"]
[Date "2024.01.02"]
[Round "7"]
[White "Filipovic, Slobodan J"]
[Black "Womacka, Mathias"]
[Result "0-1"]
[Board "102"]
[TimeControl "180+1"]
[WhiteFideId "939633"]
[BlackFideId "4611390"]
[WhiteElo "2422"]
[BlackElo "2553"]
[WhiteTeam "SRB"]
[BlackTeam "GER"]
[WhiteClock "0:00:39"]
[BlackClock "0:00:41"]

1. c4 {[%clk 0:03:00]}  c5 {[%clk 0:03:00]} 2. Nc3 {[%clk 0:03:00]}  Nf6 {[%clk 0:03:00]} 3. g3 {[%clk 0:03:00]}  d5 {[%clk 0:02:59]} 4. cxd5 {[%clk 0:03:00]}  Nxd5 {[%clk 0:03:00]} 5. Bg2 {[%clk 0:03:00]}  Nc7 {[%clk 0:02:59]} 6. f4 {[%clk 0:02:58]}  g6 {[%clk 0:02:54]} 7. Nf3 {[%clk 0:02:59]}  Bg7 {[%clk 0:02:54]} 8. O-O {[%clk 0:02:58]}  O-O {[%clk 0:02:53]} 9. b3 {[%clk 0:02:58]}  Nc6 {[%clk 0:02:49]} 10. Bb2 {[%clk 0:02:59]}  Bf5 {[%clk 0:02:35]} 11. Ne5 {[%clk 0:02:42]}  Nxe5 {[%clk 0:02:33]} 12. fxe5 {[%clk 0:02:43]}  Rb8 {[%clk 0:02:31]} 13. e4 {[%clk 0:02:37]}  Be6 {[%clk 0:02:28]} 14. Nd5 {[%clk 0:02:36]}  Nxd5 {[%clk 0:02:26]} 15. exd5 {[%clk 0:02:35]}  Bxd5 {[%clk 0:02:27]} 16. Bc3 {[%clk 0:02:27]}  Bxg2 {[%clk 0:02:26]} 17. Kxg2 {[%clk 0:02:28]}  Bxe5 {[%clk 0:02:20]} 18. Qf3 {[%clk 0:02:18]}  Bxc3 {[%clk 0:02:17]} 19. dxc3 {[%clk 0:02:19]}  Qc7 {[%clk 0:02:09]} 20. Rae1 {[%clk 0:02:12]}  Rbd8 {[%clk 0:02:05]} 21. Re2 {[%clk 0:02:07]}  b6 {[%clk 0:02:02]} 22. Rfe1 {[%clk 0:02:06]}  e6 {[%clk 0:02:00]} 23. h4 {[%clk 0:02:01]}  c4 {[%clk 0:01:57]} 24. h5 {[%clk 0:01:49]}  Rd3 {[%clk 0:01:55]} 25. Re3 {[%clk 0:01:44]}  Rxe3 {[%clk 0:01:44]} 26. Rxe3 {[%clk 0:01:45]}  Qc5 {[%clk 0:01:39]} 27. h6 {[%clk 0:01:44]}  Qd5 {[%clk 0:01:37]} 28. Re4 {[%clk 0:01:42]}  f5 {[%clk 0:01:31]} 29. Rd4 {[%clk 0:01:36]}  Qxf3+ {[%clk 0:01:29]} 30. Kxf3 {[%clk 0:01:37]}  cxb3 {[%clk 0:01:28]} 31. axb3 {[%clk 0:01:37]}  Kf7 {[%clk 0:01:15]} 32. Rd7+ {[%clk 0:01:36]}  Kf6 {[%clk 0:01:15]} 33. Rxa7 {[%clk 0:01:26]}  Rf7 {[%clk 0:01:11]} 34. Ra8 {[%clk 0:01:17]}  Rb7 {[%clk 0:01:02]} 35. Rg8 {[%clk 0:01:15]}  b5 {[%clk 0:00:57]} 36. g4 {[%clk 0:01:11]}  Rc7 {[%clk 0:00:56]} 37. Rg7 {[%clk 0:00:58]}  Rxg7 {[%clk 0:00:50]} 38. g5+ {[%clk 0:00:55]}  Kf7 {[%clk 0:00:49]} 39. hxg7 {[%clk 0:00:53]}  Kxg7 {[%clk 0:00:50]} 40. c4 {[%clk 0:00:51]}  bxc4 {[%clk 0:00:49]} 41. b4 {[%clk 0:00:51]}  Kf7 {[%clk 0:00:48]} 42. b5 {[%clk 0:00:43]}  Ke7 {[%clk 0:00:48]} 43. b6 {[%clk 0:00:36]}  Kd6 {[%clk 0:00:48]} 44. b7 {[%clk 0:00:35]}  Kc7 {[%clk 0:00:47]} 45. Kf4 {[%clk 0:00:36]}  Kxb7 {[%clk 0:00:47]} 46. Ke5 {[%clk 0:00:37]}  c3 {[%clk 0:00:47]} 47. Kxe6 {[%clk 0:00:38]}  c2 {[%clk 0:00:47]} 48. Kf6 {[%clk 0:00:39]}  c1=Q {[%clk 0:00:47]} 49. Kg7 {[%clk 0:00:39]}  Qxg5 {[%clk 0:00:46]} 50. Kxh7 {[%clk 0:00:40]}  f4 {[%clk 0:00:44]} 51. Kg7 {[%clk 0:00:41]}  f3 {[%clk 0:00:43]} 52. Kf7 {[%clk 0:00:42]}  f2 {[%clk 0:00:43]} 53. Kg7 {[%clk 0:00:43]}  f1=Q {[%clk 0:00:43]} 54. Kh7 {[%clk 0:00:39]}  Qf7+ {[%clk 0:00:41]} 0-1

[Event "January 2 Late 2024"]
[Site "https://www.chess.com"]
[Date "2024.01.02"]
[Round "7"]
[White "Grinev, Valeriy"]
[Black "Awoki, Daniel Teidi"]
[Result "1-0"]
[Board "103"]
[TimeControl "180+1"]
[WhiteFideId "14117517"]
[BlackFideId "2100827"]
[WhiteElo "2552"]
[BlackElo "2419"]
[WhiteTeam "UKR"]
[BlackTeam "BRA"]
[WhiteClock "0:02:09"]
[BlackClock "0:01:52"]

1. e4 {[%clk 0:03:00]}  c5 {[%clk 0:02:57]} 2. Nf3 {[%clk 0:03:00]}  e6 {[%clk 0:02:55]} 3. d4 {[%clk 0:02:59]}  cxd4 {[%clk 0:02:56]} 4. Nxd4 {[%clk 0:02:59]}  Nc6 {[%clk 0:02:55]} 5. Nc3 {[%clk 0:02:56]}  Qc7 {[%clk 0:02:56]} 6. Be3 {[%clk 0:02:54]}  a6 {[%clk 0:02:56]} 7. g4 {[%clk 0:02:53]}  b5 {[%clk 0:02:50]} 8. Bg2 {[%clk 0:02:50]}  Bb7 {[%clk 0:02:50]} 9. Nxc6 {[%clk 0:02:44]}  dxc6 {[%clk 0:02:50]} 10. O-O {[%clk 0:02:41]}  Bd6 {[%clk 0:02:47]} 11. f4 {[%clk 0:02:39]}  c5 {[%clk 0:02:39]} 12. e5 {[%clk 0:02:39]}  Be7 {[%clk 0:02:36]} 13. Ne4 {[%clk 0:02:36]}  Bxe4 {[%clk 0:02:25]} 14. Bxe4 {[%clk 0:02:35]}  Rd8 {[%clk 0:02:26]} 15. Qf3 {[%clk 0:02:34]}  c4 {[%clk 0:02:17]} 16. Rad1 {[%clk 0:02:33]}  Nh6 {[%clk 0:02:08]} 17. Rxd8+ {[%clk 0:02:28]}  Bxd8 {[%clk 0:02:04]} 18. Bc6+ {[%clk 0:02:16]}  Kf8 {[%clk 0:02:01]} 19. Rd1 {[%clk 0:02:17]}  Be7 {[%clk 0:01:58]} 20. Rd7 {[%clk 0:02:16]}  Qc8 {[%clk 0:01:55]} 21. Rxe7 {[%clk 0:02:10]}  Kxe7 {[%clk 0:01:52]} 22. Bc5+ {[%clk 0:02:10]}  Kd8 {[%clk 0:01:53]} 23. Qd1+ {[%clk 0:02:09]}  Kc7 {[%clk 0:01:52]} 24. Qd6# {[%clk 0:02:09]} 1-0

[Event "January 2 Late 2024"]
[Site "https://www.chess.com"]
[Date "2024.01.02"]
[Round "7"]
[White "Lin, Bryan Enming"]
[Black "Zakarian, David"]
[Result "1-0"]
[Board "105"]
[TimeControl "180+1"]
[WhiteFideId "30987121"]
[BlackFideId "13301276"]
[WhiteElo "2550"]
[BlackElo "2406"]
[WhiteTeam "USA"]
[BlackTeam "ARM"]
[WhiteClock "0:01:19"]
[BlackClock "0:00:58"]

1. e4 {[%clk 0:03:00]}  c5 {[%clk 0:03:00]} 2. Nf3 {[%clk 0:03:00]}  e6 {[%clk 0:03:00]} 3. d4 {[%clk 0:03:00]}  cxd4 {[%clk 0:03:01]} 4. Nxd4 {[%clk 0:03:01]}  a6 {[%clk 0:03:01]} 5. Nc3 {[%clk 0:03:00]}  Qc7 {[%clk 0:03:00]} 6. Bd3 {[%clk 0:03:00]}  Nf6 {[%clk 0:03:00]} 7. O-O {[%clk 0:03:00]}  Nc6 {[%clk 0:03:01]} 8. Nf3 {[%clk 0:02:56]}  Be7 {[%clk 0:02:58]} 9. Re1 {[%clk 0:02:57]}  d6 {[%clk 0:02:58]} 10. a4 {[%clk 0:02:55]}  O-O {[%clk 0:02:58]} 11. h3 {[%clk 0:02:55]}  b6 {[%clk 0:02:57]} 12. Bf4 {[%clk 0:02:54]}  Bb7 {[%clk 0:02:57]} 13. Qd2 {[%clk 0:02:54]}  Rac8 {[%clk 0:02:51]} 14. Rad1 {[%clk 0:02:53]}  Rfd8 {[%clk 0:02:46]} 15. Bf1 {[%clk 0:02:50]}  Qb8 {[%clk 0:02:44]} 16. Bh2 {[%clk 0:02:43]}  Qa8 {[%clk 0:02:43]} 17. Qe3 {[%clk 0:02:31]}  Qa7 {[%clk 0:02:21]} 18. Rd2 {[%clk 0:02:21]}  Na5 {[%clk 0:02:11]} 19. Red1 {[%clk 0:02:18]}  d5 {[%clk 0:01:55]} 20. exd5 {[%clk 0:02:16]}  Nxd5 {[%clk 0:01:53]} 21. Nxd5 {[%clk 0:02:16]}  Rxd5 {[%clk 0:01:46]} 22. Rxd5 {[%clk 0:02:14]}  Bxd5 {[%clk 0:01:46]} 23. Bd3 {[%clk 0:02:08]}  Bc5 {[%clk 0:01:39]} 24. Qf4 {[%clk 0:02:01]}  b5 {[%clk 0:01:33]} 25. b4 {[%clk 0:02:01]}  Bxf2+ {[%clk 0:01:32]} 26. Kh1 {[%clk 0:02:01]}  Nc4 {[%clk 0:01:27]} 27. axb5 {[%clk 0:01:47]}  axb5 {[%clk 0:01:26]} 28. Ng5 {[%clk 0:01:27]}  h6 {[%clk 0:01:18]} 29. Nxf7 {[%clk 0:01:27]}  Qxf7 {[%clk 0:01:17]} 30. Qxf7+ {[%clk 0:01:27]}  Kxf7 {[%clk 0:01:18]} 31. Rf1 {[%clk 0:01:28]}  Ne3 {[%clk 0:01:03]} 32. Rxf2+ {[%clk 0:01:27]}  Ke7 {[%clk 0:01:03]} 33. Be5 {[%clk 0:01:25]}  Nxc2 {[%clk 0:00:58]} 34. Rxc2 {[%clk 0:01:19]} 1-0

[Event "January 2 Late 2024"]
[Site "https://www.chess.com"]
[Date "2024.01.02"]
[Round "7"]
[White "RaugintaBulba"]
[Black "Bueno, Alfeu Junior Varela"]
[Result "1-0"]
[Board "107"]
[TimeControl "180+1"]
[BlackFideId "2108879"]
[WhiteElo "2534"]
[BlackElo "2386"]
[BlackTeam "BRA"]
[WhiteClock "0:01:03"]
[BlackClock "0:00:00"]

1. d4 {[%clk 0:02:48]}  e6 {[%clk 0:03:00]} 2. c4 {[%clk 0:02:49]}  f5 {[%clk 0:03:00]} 3. Nf3 {[%clk 0:02:49]}  b6 {[%clk 0:03:00]} 4. g3 {[%clk 0:02:50]}  Bb7 {[%clk 0:03:01]} 5. Bg2 {[%clk 0:02:44]}  Nf6 {[%clk 0:03:01]} 6. d5 {[%clk 0:02:45]}  Bd6 {[%clk 0:03:00]} 7. Nd4 {[%clk 0:02:43]}  O-O {[%clk 0:02:58]} 8. O-O {[%clk 0:02:41]}  Qc8 {[%clk 0:02:52]} 9. Nc3 {[%clk 0:02:35]}  Na6 {[%clk 0:02:48]} 10. e4 {[%clk 0:02:25]}  fxe4 {[%clk 0:02:31]} 11. Nxe4 {[%clk 0:02:26]}  exd5 {[%clk 0:02:28]} 12. Nxd6 {[%clk 0:02:18]}  cxd6 {[%clk 0:02:29]} 13. Nf5 {[%clk 0:02:19]}  Qxc4 {[%clk 0:02:18]} 14. Nxd6 {[%clk 0:02:05]}  Qc6 {[%clk 0:02:15]} 15. Bf4 {[%clk 0:02:05]}  Nc5 {[%clk 0:01:39]} 16. b4 {[%clk 0:02:04]}  Nce4 {[%clk 0:01:09]} 17. b5 {[%clk 0:02:01]}  Qc7 {[%clk 0:01:02]} 18. Nxe4 {[%clk 0:01:59]}  Qd8 {[%clk 0:00:33]} 19. Nxf6+ {[%clk 0:01:59]}  Qxf6 {[%clk 0:00:32]} 20. Bxd5+ {[%clk 0:02:00]}  Bxd5 {[%clk 0:00:31]} 21. Qxd5+ {[%clk 0:02:01]}  Kh8 {[%clk 0:00:32]} 22. Qxd7 {[%clk 0:01:54]}  Qg6 {[%clk 0:00:32]} 23. Qc6 {[%clk 0:01:51]}  Qg4 {[%clk 0:00:28]} 24. Rac1 {[%clk 0:01:45]}  Rad8 {[%clk 0:00:23]} 25. Be3 {[%clk 0:01:33]}  h6 {[%clk 0:00:17]} 26. Rc4 {[%clk 0:01:30]}  Qe2 {[%clk 0:00:16]} 27. Rh4 {[%clk 0:01:20]}  Rf6 {[%clk 0:00:09]} 28. Rxh6+ {[%clk 0:01:05]}  Rxh6 {[%clk 0:00:04]} 29. Bxh6 {[%clk 0:01:05]}  gxh6 {[%clk 0:00:04]} 30. Qxh6+ {[%clk 0:01:04]}  Kg8 {[%clk 0:00:04]} 31. Qg5+ {[%clk 0:01:05]}  Kf7 {[%clk 0:00:03]} 32. Qxd8 {[%clk 0:01:06]}  Qxa2 {[%clk 0:00:00]} 33. Rd1 {[%clk 0:01:03]} 1-0

[Event "January 2 Late 2024"]
[Site "https://www.chess.com"]
[Date "2024.01.02"]
[Round "7"]
[White "Ismayil, Malak"]
[Black "Khodabandeh, Milad"]
[Result "1/2-1/2"]
[Board "109"]
[TimeControl "180+1"]
[WhiteFideId "13412604"]
[BlackFideId "12538620"]
[WhiteElo "2529"]
[BlackElo "2384"]
[WhiteTeam "AZE"]
[BlackTeam "IRI"]
[WhiteClock "0:00:14"]
[BlackClock "0:00:19"]

1. e4 {[%clk 0:03:00]}  e5 {[%clk 0:02:58]} 2. Nf3 {[%clk 0:03:01]}  Nc6 {[%clk 0:02:58]} 3. Bc4 {[%clk 0:03:01]}  Bc5 {[%clk 0:02:57]} 4. d3 {[%clk 0:03:01]}  Nf6 {[%clk 0:02:58]} 5. Nc3 {[%clk 0:03:00]}  d6 {[%clk 0:02:58]} 6. h3 {[%clk 0:02:59]}  a6 {[%clk 0:02:58]} 7. O-O {[%clk 0:02:51]}  h6 {[%clk 0:02:56]} 8. Be3 {[%clk 0:02:46]}  Ba7 {[%clk 0:02:55]} 9. d4 {[%clk 0:02:42]}  O-O {[%clk 0:02:52]} 10. dxe5 {[%clk 0:02:35]}  Nxe5 {[%clk 0:02:52]} 11. Nxe5 {[%clk 0:02:32]}  dxe5 {[%clk 0:02:42]} 12. Bxa7 {[%clk 0:02:28]}  Rxa7 {[%clk 0:02:41]} 13. Qe2 {[%clk 0:02:28]}  c6 {[%clk 0:02:35]} 14. Rad1 {[%clk 0:02:21]}  Qe7 {[%clk 0:02:33]} 15. Bb3 {[%clk 0:02:17]}  b5 {[%clk 0:02:28]} 16. a3 {[%clk 0:02:14]}  a5 {[%clk 0:02:26]} 17. Rfe1 {[%clk 0:02:01]}  Rd8 {[%clk 0:02:16]} 18. Rxd8+ {[%clk 0:01:42]}  Qxd8 {[%clk 0:02:16]} 19. Rd1 {[%clk 0:01:43]}  Rd7 {[%clk 0:02:15]} 20. Rxd7 {[%clk 0:01:39]}  Qxd7 {[%clk 0:02:13]} 21. Qe3 {[%clk 0:01:39]}  a4 {[%clk 0:02:04]} 22. Ba2 {[%clk 0:01:34]}  Qd4 {[%clk 0:02:01]} 23. Qxd4 {[%clk 0:01:19]}  exd4 {[%clk 0:02:02]} 24. Ne2 {[%clk 0:01:19]}  c5 {[%clk 0:01:55]} 25. f3 {[%clk 0:01:16]}  Be6 {[%clk 0:01:46]} 26. Bxe6 {[%clk 0:01:14]}  fxe6 {[%clk 0:01:47]} 27. Kf2 {[%clk 0:01:14]}  e5 {[%clk 0:01:38]} 28. Nc1 {[%clk 0:01:11]}  c4 {[%clk 0:01:35]} 29. g3 {[%clk 0:01:07]}  Kf7 {[%clk 0:01:32]} 30. Ke2 {[%clk 0:01:07]}  Ke6 {[%clk 0:01:28]} 31. Kf2 {[%clk 0:01:04]}  Kd6 {[%clk 0:01:26]} 32. Na2 {[%clk 0:01:04]}  Kc5 {[%clk 0:01:11]} 33. Nb4 {[%clk 0:00:58]}  g5 {[%clk 0:01:01]} 34. Na6+ {[%clk 0:00:51]}  Kb6 {[%clk 0:00:56]} 35. Nb4 {[%clk 0:00:52]}  Kc7 {[%clk 0:00:46]} 36. Ke2 {[%clk 0:00:48]}  Kd6 {[%clk 0:00:46]} 37. Kf2 {[%clk 0:00:46]}  h5 {[%clk 0:00:38]} 38. g4 {[%clk 0:00:32]}  h4 {[%clk 0:00:37]} 39. Ke2 {[%clk 0:00:30]}  Ng8 {[%clk 0:00:26]} 40. Nd5 {[%clk 0:00:27]}  Ne7 {[%clk 0:00:27]} 41. Nxe7 {[%clk 0:00:22]}  Kxe7 {[%clk 0:00:27]} 42. Kd2 {[%clk 0:00:19]}  Kd6 {[%clk 0:00:27]} 43. Ke2 {[%clk 0:00:20]}  Kc5 {[%clk 0:00:27]} 44. c3 {[%clk 0:00:16]}  b4 {[%clk 0:00:12]} 45. cxb4+ {[%clk 0:00:10]}  Kb5 {[%clk 0:00:12]} 46. Kd2 {[%clk 0:00:11]}  Kb6 {[%clk 0:00:10]} 47. Kc2 {[%clk 0:00:11]}  Kc6 {[%clk 0:00:10]} 48. Kd2 {[%clk 0:00:12]}  Kc7 {[%clk 0:00:10]} 49. Kc2 {[%clk 0:00:12]}  Kd7 {[%clk 0:00:11]} 50. Kd2 {[%clk 0:00:12]}  Ke7 {[%clk 0:00:11]} 51. Kc2 {[%clk 0:00:13]}  Kf7 {[%clk 0:00:11]} 52. Kd2 {[%clk 0:00:10]}  Kf8 {[%clk 0:00:11]} 53. Kc2 {[%clk 0:00:10]}  Ke8 {[%clk 0:00:12]} 54. Kd2 {[%clk 0:00:10]}  Kd8 {[%clk 0:00:13]} 55. Kc2 {[%clk 0:00:10]}  Kc8 {[%clk 0:00:13]} 56. Kd2 {[%clk 0:00:11]}  Kb8 {[%clk 0:00:14]} 57. Kc2 {[%clk 0:00:11]}  Ka8 {[%clk 0:00:15]} 58. Kd2 {[%clk 0:00:12]}  Ka7 {[%clk 0:00:15]} 59. Kc2 {[%clk 0:00:12]}  Kb7 {[%clk 0:00:16]} 60. Kd2 {[%clk 0:00:13]}  Kc7 {[%clk 0:00:16]} 61. Kc2 {[%clk 0:00:14]}  Kd7 {[%clk 0:00:17]} 62. Kd2 {[%clk 0:00:14]}  Ke7 {[%clk 0:00:17]} 63. Kc2 {[%clk 0:00:15]}  Kf6 {[%clk 0:00:17]} 64. Kd2 {[%clk 0:00:14]}  Kf7 {[%clk 0:00:18]} 65. Kc2 {[%clk 0:00:15]}  Ke6 {[%clk 0:00:18]} 66. Kd2 {[%clk 0:00:16]}  Kd6 {[%clk 0:00:19]} 67. Kc2 {[%clk 0:00:16]}  Kc6 {[%clk 0:00:19]} 68. Kd2 {[%clk 0:00:13]}  Kb5 {[%clk 0:00:19]} 69. Kc2 {[%clk 0:00:13]}  Ka6 {[%clk 0:00:20]} 70. Kd2 {[%clk 0:00:14]}  Kb6 {[%clk 0:00:20]} 71. Kc2 {[%clk 0:00:14]}  Kc6 {[%clk 0:00:19]} 1/2-1/2

[Event "January 2 Late 2024"]
[Site "https://www.chess.com"]
[Date "2024.01.02"]
[Round "7"]
[White "Tabuenca Mendataurigoitia, Daniel"]
[Black "Arias Igual, Alejandro"]
[Result "1-0"]
[Board "110"]
[TimeControl "180+1"]
[WhiteFideId "24563617"]
[BlackFideId "2254905"]
[WhiteElo "2524"]
[BlackElo "2379"]
[WhiteTeam "ESP"]
[BlackTeam "ESP"]
[WhiteClock "0:00:36"]
[BlackClock "0:00:01"]

1. d4 {[%clk 0:02:59]}  d5 {[%clk 0:02:58]} 2. Nc3 {[%clk 0:02:58]}  c5 {[%clk 0:02:54]} 3. e4 {[%clk 0:02:47]}  dxe4 {[%clk 0:02:39]} 4. dxc5 {[%clk 0:02:46]}  Qxd1+ {[%clk 0:02:37]} 5. Kxd1 {[%clk 0:02:47]}  Nf6 {[%clk 0:02:35]} 6. Nge2 {[%clk 0:02:39]}  Bg4 {[%clk 0:02:31]} 7. h3 {[%clk 0:02:37]}  Bh5 {[%clk 0:02:31]} 8. g4 {[%clk 0:02:37]}  Bg6 {[%clk 0:02:30]} 9. Nf4 {[%clk 0:02:33]}  e5 {[%clk 0:02:28]} 10. Nfd5 {[%clk 0:02:31]}  Nxd5 {[%clk 0:01:58]} 11. Nxd5 {[%clk 0:02:31]}  Kd8 {[%clk 0:01:59]} 12. b4 {[%clk 0:02:28]}  Nc6 {[%clk 0:01:52]} 13. c3 {[%clk 0:02:27]}  Ne7 {[%clk 0:01:35]} 14. Bc4 {[%clk 0:02:12]}  Nxd5 {[%clk 0:01:31]} 15. Bxd5 {[%clk 0:02:13]}  Kc7 {[%clk 0:01:32]} 16. Ke2 {[%clk 0:02:12]}  h5 {[%clk 0:01:29]} 17. Bb2 {[%clk 0:01:59]}  a5 {[%clk 0:01:23]} 18. a3 {[%clk 0:01:51]}  Rd8 {[%clk 0:01:18]} 19. c4 {[%clk 0:01:50]}  f6 {[%clk 0:01:05]} 20. g5 {[%clk 0:01:49]}  h4 {[%clk 0:00:57]} 21. Ke3 {[%clk 0:01:45]}  b6 {[%clk 0:00:38]} 22. cxb6+ {[%clk 0:01:39]}  Kxb6 {[%clk 0:00:37]} 23. c5+ {[%clk 0:01:40]}  Kb5 {[%clk 0:00:24]} 24. Rhd1 {[%clk 0:01:21]}  axb4 {[%clk 0:00:11]} 25. axb4 {[%clk 0:01:03]}  Bh5 {[%clk 0:00:08]} 26. Rd2 {[%clk 0:00:54]}  Bf3 {[%clk 0:00:08]} 27. Bc3 {[%clk 0:00:46]}  Bxc5+ {[%clk 0:00:02]} 28. bxc5 {[%clk 0:00:46]}  Kxc5 {[%clk 0:00:02]} 29. Ra5+ {[%clk 0:00:36]}  Kb6 {[%clk 0:00:02]} 30. Rb2+ {[%clk 0:00:36]}  Kc7 {[%clk 0:00:01]} 31. Rb7+ {[%clk 0:00:36]}  Kd6 {[%clk 0:00:01]} 32. Bb4# {[%clk 0:00:36]} 1-0

[Event "January 2 Late 2024"]
[Site "https://www.chess.com"]
[Date "2024.01.02"]
[Round "7"]
[White "Estrada Nieto, Julian"]
[Black "CRObliterator"]
[Result "0-1"]
[Board "111"]
[TimeControl "180+1"]
[WhiteFideId "5101018"]
[WhiteElo "2523"]
[BlackElo "2367"]
[WhiteTeam "ESP"]
[WhiteClock "0:00:04"]
[BlackClock "0:00:15"]

1. e4 {[%clk 0:02:45]}  e5 {[%clk 0:02:57]} 2. Nf3 {[%clk 0:02:43]}  Nc6 {[%clk 0:02:58]} 3. Bb5 {[%clk 0:02:44]}  a6 {[%clk 0:02:58]} 4. Ba4 {[%clk 0:02:44]}  Nf6 {[%clk 0:02:58]} 5. O-O {[%clk 0:02:44]}  Be7 {[%clk 0:02:58]} 6. d3 {[%clk 0:02:43]}  b5 {[%clk 0:02:59]} 7. Bb3 {[%clk 0:02:43]}  O-O {[%clk 0:02:58]} 8. a4 {[%clk 0:02:44]}  b4 {[%clk 0:02:54]} 9. Re1 {[%clk 0:02:41]}  d6 {[%clk 0:02:54]} 10. h3 {[%clk 0:02:41]}  Nb8 {[%clk 0:02:51]} 11. Nbd2 {[%clk 0:02:39]}  c5 {[%clk 0:02:50]} 12. Nc4 {[%clk 0:02:38]}  Be6 {[%clk 0:02:47]} 13. c3 {[%clk 0:02:27]}  Nc6 {[%clk 0:02:47]} 14. Ng5 {[%clk 0:02:11]}  Bd7 {[%clk 0:02:32]} 15. a5 {[%clk 0:02:02]}  h6 {[%clk 0:02:32]} 16. Nf3 {[%clk 0:02:01]}  Be6 {[%clk 0:02:30]} 17. Nh2 {[%clk 0:01:48]}  Bxc4 {[%clk 0:02:27]} 18. Bxc4 {[%clk 0:01:47]}  Nxa5 {[%clk 0:02:27]} 19. Ba2 {[%clk 0:01:42]}  Rb8 {[%clk 0:02:20]} 20. Ng4 {[%clk 0:01:36]}  Nxg4 {[%clk 0:02:12]} 21. Qxg4 {[%clk 0:01:36]}  b3 {[%clk 0:02:11]} 22. Bxh6 {[%clk 0:01:30]}  Bf6 {[%clk 0:02:00]} 23. Bb1 {[%clk 0:01:30]}  Ra8 {[%clk 0:01:35]} 24. Re3 {[%clk 0:01:24]}  Kh7 {[%clk 0:01:28]} 25. Rf3 {[%clk 0:00:50]}  gxh6 {[%clk 0:01:20]} 26. Qf5+ {[%clk 0:00:38]}  Kg7 {[%clk 0:01:19]} 27. d4 {[%clk 0:00:34]}  Nc4 {[%clk 0:01:12]} 28. dxc5 {[%clk 0:00:21]}  dxc5 {[%clk 0:00:55]} 29. Rg3+ {[%clk 0:00:19]}  Kh8 {[%clk 0:00:53]} 30. Bd3 {[%clk 0:00:19]}  Nxb2 {[%clk 0:00:49]} 31. Be2 {[%clk 0:00:16]}  Bg7 {[%clk 0:00:39]} 32. Rb1 {[%clk 0:00:15]}  Qd2 {[%clk 0:00:31]} 33. Bh5 {[%clk 0:00:12]}  a5 {[%clk 0:00:22]} 34. Qg4 {[%clk 0:00:11]}  Qg5 {[%clk 0:00:19]} 35. Qe2 {[%clk 0:00:10]}  Qh4 {[%clk 0:00:10]} 36. Rxb2 {[%clk 0:00:08]}  a4 {[%clk 0:00:10]} 37. Rb1 {[%clk 0:00:06]}  c4 {[%clk 0:00:10]} 38. Bg4 {[%clk 0:00:03]}  a3 {[%clk 0:00:09]} 39. Rf3 {[%clk 0:00:03]}  a2 {[%clk 0:00:09]} 40. Ra1 {[%clk 0:00:03]}  Rfb8 {[%clk 0:00:08]} 41. Qb2 {[%clk 0:00:04]}  Qd8 {[%clk 0:00:07]} 42. Re3 {[%clk 0:00:03]}  Qd6 {[%clk 0:00:07]} 43. Be2 {[%clk 0:00:03]}  Qa3 {[%clk 0:00:07]} 44. Qxa3 {[%clk 0:00:02]}  Rxa3 {[%clk 0:00:08]} 45. Bxc4 {[%clk 0:00:03]}  b2 {[%clk 0:00:08]} 46. Rxa2 {[%clk 0:00:03]}  b1=Q+ {[%clk 0:00:07]} 47. Kh2 {[%clk 0:00:03]}  Rxa2 {[%clk 0:00:08]} 48. Bxa2 {[%clk 0:00:03]}  Qxa2 {[%clk 0:00:09]} 49. Rd3 {[%clk 0:00:03]}  Qc4 {[%clk 0:00:09]} 50. Rd1 {[%clk 0:00:03]}  Qxe4 {[%clk 0:00:09]} 51. Kg1 {[%clk 0:00:03]}  Qf4 {[%clk 0:00:10]} 52. Rf1 {[%clk 0:00:04]}  Rb2 {[%clk 0:00:10]} 53. c4 {[%clk 0:00:05]}  Qxc4 {[%clk 0:00:10]} 54. g3 {[%clk 0:00:04]}  e4 {[%clk 0:00:10]} 55. h4 {[%clk 0:00:05]}  Bd4 {[%clk 0:00:10]} 56. Kg2 {[%clk 0:00:04]}  Rxf2+ {[%clk 0:00:10]} 57. Rxf2 {[%clk 0:00:05]}  Bxf2 {[%clk 0:00:11]} 58. Kxf2 {[%clk 0:00:05]}  Qd3 {[%clk 0:00:12]} 59. g4 {[%clk 0:00:05]}  Qf3+ {[%clk 0:00:13]} 60. Ke1 {[%clk 0:00:05]}  e3 {[%clk 0:00:13]} 61. g5 {[%clk 0:00:04]}  Qf2+ {[%clk 0:00:14]} 62. Kd1 {[%clk 0:00:04]}  Qd2# {[%clk 0:00:15]} 0-1